[Event "Titled Tuesday Blitz April 18 Early 2023"]
[White "Terry, Renato"]
[Black "Nagy, Gabor"]
[WhiteFideId "3803457"]
[BlackFideId "737119"]
[WhiteElo "2575"]
[BlackElo "2514"]
[Result "1-0"]
[Round "07"]
[TimeControl "180+2"]
[Date "2023.04.18"]
[WhiteClock "0:00:07"]
[BlackClock "0:00:05"]

1. d4 {[%clk 0:02:59]}  d5 {[%clk 0:02:56]} 2. Bg5 {[%clk 0:02:59]}  f6 {[%clk 0:02:56]} 3. Bf4 {[%clk 0:02:57]}  Nc6 {[%clk 0:02:55]} 4. Nf3 {[%clk 0:02:52]}  Bg4 {[%clk 0:02:53]} 5. Nbd2 {[%clk 0:02:47]}  g5 {[%clk 0:02:32]} 6. Bg3 {[%clk 0:02:46]}  h5 {[%clk 0:02:26]} 7. h4 {[%clk 0:02:45]}  Bxf3 {[%clk 0:02:26]} 8. Nxf3 {[%clk 0:02:45]}  g4 {[%clk 0:02:26]} 9. Ng1 {[%clk 0:02:45]}  e5 {[%clk 0:02:24]} 10. e3 {[%clk 0:02:42]}  Bd6 {[%clk 0:02:22]} 11. Ne2 {[%clk 0:02:21]}  Nh6 {[%clk 0:02:17]} 12. c3 {[%clk 0:02:21]}  Nf5 {[%clk 0:02:06]} 13. dxe5 {[%clk 0:02:21]}  Bxe5 {[%clk 0:02:03]} 14. Qd3 {[%clk 0:02:11]}  Nxg3 {[%clk 0:02:01]} 15. Qg6+ {[%clk 0:02:11]}  Kf8 {[%clk 0:02:00]} 16. fxg3 {[%clk 0:02:09]}  Qe7 {[%clk 0:01:54]} 17. O-O-O {[%clk 0:02:06]}  Rd8 {[%clk 0:01:51]} 18. Qd3 {[%clk 0:02:06]}  Kg7 {[%clk 0:01:49]} 19. Nf4 {[%clk 0:02:03]}  Bxf4 {[%clk 0:01:47]} 20. gxf4 {[%clk 0:02:03]}  Rhe8 {[%clk 0:01:44]} 21. Re1 {[%clk 0:02:03]}  d4 {[%clk 0:01:40]} 22. Qf5 {[%clk 0:02:04]}  dxc3 {[%clk 0:01:38]} 23. Bd3 {[%clk 0:02:03]}  Kf8 {[%clk 0:01:13]} 24. Qxh5 {[%clk 0:01:42]}  Qb4 {[%clk 0:00:49]} 25. Qh8+ {[%clk 0:01:38]}  Ke7 {[%clk 0:00:49]} 26. Qg7+ {[%clk 0:01:35]}  Ke6 {[%clk 0:00:48]} 27. Qxg4+ {[%clk 0:01:17]}  Kd6 {[%clk 0:00:47]} 28. Qe2 {[%clk 0:01:12]}  Kc5 {[%clk 0:00:44]} 29. Rd1 {[%clk 0:00:55]}  cxb2+ {[%clk 0:00:26]} 30. Kb1 {[%clk 0:00:55]}  a5 {[%clk 0:00:22]} 31. h5 {[%clk 0:00:47]}  a4 {[%clk 0:00:21]} 32. Qc2+ {[%clk 0:00:41]}  Kb6 {[%clk 0:00:20]} 33. Qxb2 {[%clk 0:00:41]}  Qxb2+ {[%clk 0:00:21]} 34. Kxb2 {[%clk 0:00:42]}  Rxe3 {[%clk 0:00:22]} 35. h6 {[%clk 0:00:43]}  Rg3 {[%clk 0:00:20]} 36. Be4 {[%clk 0:00:43]}  Rh8 {[%clk 0:00:18]} 37. a3 {[%clk 0:00:35]}  Na5 {[%clk 0:00:14]} 38. Rd4 {[%clk 0:00:34]}  Kc5 {[%clk 0:00:10]} 39. Rd5+ {[%clk 0:00:32]}  Kb6 {[%clk 0:00:10]} 40. Rd4 {[%clk 0:00:26]}  Kc5 {[%clk 0:00:10]} 41. Rxa4 {[%clk 0:00:25]}  Nc4+ {[%clk 0:00:11]} 42. Ka2 {[%clk 0:00:25]}  b5 {[%clk 0:00:10]} 43. Ra6 {[%clk 0:00:25]}  Kd4 {[%clk 0:00:10]} 44. Bf3 {[%clk 0:00:24]}  Rg6 {[%clk 0:00:07]} 45. h7 {[%clk 0:00:23]}  Rg7 {[%clk 0:00:07]} 46. Rd1+ {[%clk 0:00:13]}  Kc3 {[%clk 0:00:08]} 47. Be4 {[%clk 0:00:09]}  f5 {[%clk 0:00:07]} 48. Rd3+ {[%clk 0:00:07]}  Kc2 {[%clk 0:00:06]} 49. Bxf5 {[%clk 0:00:08]}  Kc1 {[%clk 0:00:05]} 50. Re6 {[%clk 0:00:06]}  Rxg2+ {[%clk 0:00:05]} 51. Kb3 {[%clk 0:00:06]}  Rb2+ {[%clk 0:00:02]} 52. Kc3 {[%clk 0:00:06]}  Rc2+ {[%clk 0:00:03]} 53. Kb4 {[%clk 0:00:07]}  Rb2+ {[%clk 0:00:02]} 54. Kc5 {[%clk 0:00:07]}  Nb6 {[%clk 0:00:02]} 55. Re1+ {[%clk 0:00:07]}  Kc2 {[%clk 0:00:02]} 56. Re2+ {[%clk 0:00:07]}  Kc1 {[%clk 0:00:02]} 57. Rc3+ {[%clk 0:00:07]}  Kd1 {[%clk 0:00:02]} 58. Rxb2 {[%clk 0:00:06]}  Na4+ {[%clk 0:00:03]} 59. Kb4 {[%clk 0:00:05]}  Nxb2 {[%clk 0:00:03]} 60. Rxc7 {[%clk 0:00:06]}  Nc4 {[%clk 0:00:03]} 61. Rxc4 {[%clk 0:00:05]}  bxc4 {[%clk 0:00:03]} 62. Kxc4 {[%clk 0:00:06]}  Kd2 {[%clk 0:00:04]} 63. Kd5 {[%clk 0:00:05]}  Ke3 {[%clk 0:00:04]} 64. Ke5 {[%clk 0:00:06]}  Ra8 {[%clk 0:00:04]} 65. Be6 {[%clk 0:00:06]}  Rh8 {[%clk 0:00:03]} 66. Bg8 {[%clk 0:00:06]}  Kf3 {[%clk 0:00:03]} 67. f5 {[%clk 0:00:07]}  Kg4 {[%clk 0:00:04]} 68. f6 {[%clk 0:00:06]}  Kg5 {[%clk 0:00:05]} 69. f7 {[%clk 0:00:07]}  Rxg8 {[%clk 0:00:04]} 70. hxg8=Q+ {[%clk 0:00:07]}  Kh6 {[%clk 0:00:04]} 71. f8=Q+ {[%clk 0:00:08]}  Kh5 {[%clk 0:00:04]} 72. Qf5+ {[%clk 0:00:07]}  Kh4 {[%clk 0:00:05]} 73. Qfg4# {[%clk 0:00:07]} 1-0


[Site "https://www.chess.com"]

[Event "Titled Tuesday Blitz April 18 Early 2023"]
[White "Iliaguev, Nisim"]
[Black "Drozdowski, Kacper"]
[WhiteFideId "2817276"]
[BlackFideId "1136720"]
[WhiteElo "2241"]
[BlackElo "2497"]
[Result "0-1"]
[Round "07"]
[TimeControl "180+2"]
[Date "2023.04.18"]
[WhiteClock "0:00:08"]
[BlackClock "0:00:33"]

1. d4 {[%clk 0:02:56]}  Nf6 {[%clk 0:02:59]} 2. Nf3 {[%clk 0:02:57]}  g6 {[%clk 0:02:59]} 3. g3 {[%clk 0:02:57]}  Bg7 {[%clk 0:02:59]} 4. Bg2 {[%clk 0:02:58]}  O-O {[%clk 0:02:59]} 5. O-O {[%clk 0:02:59]}  d5 {[%clk 0:02:58]} 6. Ne5 {[%clk 0:02:59]}  Nbd7 {[%clk 0:02:57]} 7. c4 {[%clk 0:03:00]}  dxc4 {[%clk 0:02:54]} 8. Nxc4 {[%clk 0:03:00]}  Nb6 {[%clk 0:02:53]} 9. Nxb6 {[%clk 0:03:00]}  axb6 {[%clk 0:02:53]} 10. Nc3 {[%clk 0:03:01]}  c6 {[%clk 0:02:51]} 11. e4 {[%clk 0:02:58]}  b5 {[%clk 0:02:51]} 12. h3 {[%clk 0:02:53]}  b4 {[%clk 0:02:49]} 13. Ne2 {[%clk 0:02:52]}  Qa5 {[%clk 0:02:42]} 14. Be3 {[%clk 0:02:51]}  Rd8 {[%clk 0:02:41]} 15. Qd2 {[%clk 0:02:48]}  e5 {[%clk 0:02:38]} 16. a3 {[%clk 0:02:27]}  exd4 {[%clk 0:02:26]} 17. axb4 {[%clk 0:02:22]}  dxe3 {[%clk 0:02:06]} 18. Qxe3 {[%clk 0:01:59]}  Qxa1 {[%clk 0:02:05]} 19. Rxa1 {[%clk 0:01:59]}  Rxa1+ {[%clk 0:02:06]} 20. Kh2 {[%clk 0:02:00]}  Re8 {[%clk 0:02:05]} 21. Nc3 {[%clk 0:01:49]}  Be6 {[%clk 0:02:00]} 22. b5 {[%clk 0:01:41]}  cxb5 {[%clk 0:01:59]} 23. e5 {[%clk 0:01:41]}  Nd7 {[%clk 0:01:56]} 24. f4 {[%clk 0:01:40]}  b4 {[%clk 0:01:48]} 25. Nd5 {[%clk 0:01:40]}  Ra2 {[%clk 0:01:24]} 26. Nc7 {[%clk 0:01:36]}  Rxb2 {[%clk 0:01:12]} 27. Qd4 {[%clk 0:01:34]}  Rxg2+ {[%clk 0:00:53]} 28. Kxg2 {[%clk 0:01:35]}  Rd8 {[%clk 0:00:50]} 29. Nxe6 {[%clk 0:01:30]}  fxe6 {[%clk 0:00:51]} 30. Qxb4 {[%clk 0:01:31]}  Nf8 {[%clk 0:00:49]} 31. Qxb7 {[%clk 0:01:26]}  h5 {[%clk 0:00:49]} 32. h4 {[%clk 0:01:25]}  Rd2+ {[%clk 0:00:48]} 33. Kh3 {[%clk 0:01:25]}  Rd3 {[%clk 0:00:48]} 34. Qe4 {[%clk 0:01:25]}  Rd7 {[%clk 0:00:48]} 35. Qc6 {[%clk 0:01:25]}  Kf7 {[%clk 0:00:48]} 36. Qb5 {[%clk 0:01:24]}  Re7 {[%clk 0:00:49]} 37. g4 {[%clk 0:01:24]}  hxg4+ {[%clk 0:00:49]} 38. Kxg4 {[%clk 0:01:25]}  Kg8 {[%clk 0:00:47]} 39. h5 {[%clk 0:01:24]}  gxh5+ {[%clk 0:00:47]} 40. Kxh5 {[%clk 0:01:25]}  Rf7 {[%clk 0:00:48]} 41. Qc4 {[%clk 0:01:07]}  Rf5+ {[%clk 0:00:46]} 42. Kg4 {[%clk 0:01:08]}  Kh7 {[%clk 0:00:45]} 43. Qxe6 {[%clk 0:00:36]}  Nxe6 {[%clk 0:00:45]} 44. Kxf5 {[%clk 0:00:36]}  Nf8 {[%clk 0:00:42]} 45. e6 {[%clk 0:00:24]}  Ng6 {[%clk 0:00:40]} 46. Kg5 {[%clk 0:00:24]}  Ne7 {[%clk 0:00:34]} 47. f5 {[%clk 0:00:21]}  Nd5 {[%clk 0:00:34]} 48. Kg4 {[%clk 0:00:10]}  Bf6 {[%clk 0:00:34]} 49. Kf3 {[%clk 0:00:09]}  Ne7 {[%clk 0:00:32]} 50. Ke4 {[%clk 0:00:08]}  Kh6 {[%clk 0:00:33]} 0-1


[Site "https://www.chess.com"]

[Event "Titled Tuesday Blitz April 18 Early 2023"]
[White "Anton Guijarro, David"]
[Black "Amilal Munkhdalai"]
[WhiteFideId "2285525"]
[BlackFideId "4903250"]
[WhiteElo "2618"]
[BlackElo "2293"]
[Result "1/2-1/2"]
[Round "07"]
[TimeControl "180+2"]
[Date "2023.04.18"]
[WhiteClock "0:00:02"]
[BlackClock "0:00:06"]

1. d4 {[%clk 0:03:00]}  Nf6 {[%clk 0:02:59]} 2. Nf3 {[%clk 0:03:01]}  e6 {[%clk 0:02:55]} 3. Bg5 {[%clk 0:03:01]}  d5 {[%clk 0:02:54]} 4. Nbd2 {[%clk 0:03:01]}  h6 {[%clk 0:02:53]} 5. Bxf6 {[%clk 0:03:00]}  Qxf6 {[%clk 0:02:54]} 6. e4 {[%clk 0:03:01]}  c6 {[%clk 0:02:54]} 7. Bd3 {[%clk 0:03:00]}  Nd7 {[%clk 0:02:54]} 8. Qe2 {[%clk 0:02:59]}  Qd8 {[%clk 0:02:51]} 9. O-O-O {[%clk 0:02:55]}  b6 {[%clk 0:02:45]} 10. Rde1 {[%clk 0:02:46]}  Bb7 {[%clk 0:02:42]} 11. exd5 {[%clk 0:02:46]}  cxd5 {[%clk 0:02:42]} 12. Ne5 {[%clk 0:02:23]}  Nxe5 {[%clk 0:02:41]} 13. Qxe5 {[%clk 0:02:24]}  a6 {[%clk 0:02:33]} 14. f4 {[%clk 0:02:00]}  Qd6 {[%clk 0:02:25]} 15. Qh5 {[%clk 0:01:41]}  g6 {[%clk 0:01:12]} 16. Bxg6 {[%clk 0:01:24]}  fxg6 {[%clk 0:01:12]} 17. Qxg6+ {[%clk 0:01:25]}  Kd7 {[%clk 0:01:12]} 18. f5 {[%clk 0:01:19]}  exf5 {[%clk 0:00:43]} 19. Qxf5+ {[%clk 0:01:17]}  Kc7 {[%clk 0:00:38]} 20. Re3 {[%clk 0:00:24]}  Rd8 {[%clk 0:00:30]} 21. Rf1 {[%clk 0:00:20]}  Kb8 {[%clk 0:00:27]} 22. Kb1 {[%clk 0:00:20]}  Be7 {[%clk 0:00:18]} 23. Qh5 {[%clk 0:00:19]}  Bg5 {[%clk 0:00:16]} 24. Rd3 {[%clk 0:00:20]}  Bxd2 {[%clk 0:00:13]} 25. Rxd2 {[%clk 0:00:20]}  Rhf8 {[%clk 0:00:13]} 26. Rxf8 {[%clk 0:00:18]}  Rxf8 {[%clk 0:00:13]} 27. a3 {[%clk 0:00:18]}  a5 {[%clk 0:00:13]} 28. Re2 {[%clk 0:00:18]}  Ba6 {[%clk 0:00:12]} 29. Re5 {[%clk 0:00:17]}  Bc4 {[%clk 0:00:10]} 30. b3 {[%clk 0:00:16]}  Qxa3 {[%clk 0:00:10]} 31. Re8+ {[%clk 0:00:16]}  Rxe8 {[%clk 0:00:08]} 32. Qxe8+ {[%clk 0:00:17]}  Ka7 {[%clk 0:00:09]} 33. Qd7+ {[%clk 0:00:16]}  Ka6 {[%clk 0:00:09]} 34. Qc8+ {[%clk 0:00:08]}  Ka7 {[%clk 0:00:09]} 35. Qc7+ {[%clk 0:00:07]}  Ka6 {[%clk 0:00:09]} 36. Qc8+ {[%clk 0:00:07]}  Ka7 {[%clk 0:00:09]} 37. Qc7+ {[%clk 0:00:07]}  Ka6 {[%clk 0:00:10]} 38. bxc4 {[%clk 0:00:02]}  Qb4+ {[%clk 0:00:10]} 39. Kc1 {[%clk 0:00:01]}  dxc4 {[%clk 0:00:10]} 40. Qc8+ {[%clk 0:00:01]}  Ka7 {[%clk 0:00:11]} 41. Qd7+ {[%clk 0:00:01]}  Ka6 {[%clk 0:00:11]} 42. Qc8+ {[%clk 0:00:01]}  Ka7 {[%clk 0:00:12]} 43. Qd7+ {[%clk 0:00:01]}  Kb8 {[%clk 0:00:12]} 44. Qe8+ {[%clk 0:00:01]}  Kc7 {[%clk 0:00:12]} 45. Qf7+ {[%clk 0:00:02]}  Kb8 {[%clk 0:00:10]} 46. Qe8+ {[%clk 0:00:02]}  Kc7 {[%clk 0:00:10]} 47. Qf7+ {[%clk 0:00:02]}  Kb8 {[%clk 0:00:06]} 48. Qe8+ {[%clk 0:00:02]} 1/2-1/2


[Site "https://www.chess.com"]

[Event "Titled Tuesday Blitz April 18 Early 2023"]
[White "Toropov, Pavel"]
[Black "Sarana, Alexey"]
[WhiteFideId "24129178"]
[BlackFideId "24133795"]
[WhiteElo "2182"]
[BlackElo "2714"]
[Result "0-1"]
[Round "07"]
[TimeControl "180+2"]
[Date "2023.04.18"]
[WhiteClock "0:00:03"]
[BlackClock "0:00:25"]

1. e4 {[%clk 0:03:00]}  c5 {[%clk 0:03:00]} 2. Nf3 {[%clk 0:03:00]}  d6 {[%clk 0:03:00]} 3. Bb5+ {[%clk 0:03:00]}  Bd7 {[%clk 0:03:00]} 4. Bxd7+ {[%clk 0:03:00]}  Nxd7 {[%clk 0:03:00]} 5. Qe2 {[%clk 0:02:58]}  e6 {[%clk 0:02:58]} 6. c4 {[%clk 0:02:57]}  Ne5 {[%clk 0:02:57]} 7. b3 {[%clk 0:02:39]}  Ne7 {[%clk 0:02:55]} 8. Bb2 {[%clk 0:02:38]}  N7c6 {[%clk 0:02:56]} 9. d3 {[%clk 0:02:28]}  Be7 {[%clk 0:02:50]} 10. Nbd2 {[%clk 0:02:22]}  Bf6 {[%clk 0:02:48]} 11. Nxe5 {[%clk 0:02:15]}  dxe5 {[%clk 0:02:46]} 12. Nf3 {[%clk 0:02:10]}  Qd6 {[%clk 0:02:36]} 13. O-O {[%clk 0:02:10]}  g5 {[%clk 0:02:24]} 14. a3 {[%clk 0:01:40]}  g4 {[%clk 0:02:23]} 15. Ne1 {[%clk 0:01:40]}  h5 {[%clk 0:02:22]} 16. Nc2 {[%clk 0:01:38]}  Rd8 {[%clk 0:02:21]} 17. Rad1 {[%clk 0:01:37]}  Rg8 {[%clk 0:02:09]} 18. f4 {[%clk 0:01:23]}  Ke7 {[%clk 0:02:08]} 19. f5 {[%clk 0:01:12]}  Bg5 {[%clk 0:02:00]} 20. b4 {[%clk 0:01:09]}  b6 {[%clk 0:01:52]} 21. b5 {[%clk 0:01:08]}  Nb8 {[%clk 0:01:43]} 22. Bc3 {[%clk 0:00:52]}  Nd7 {[%clk 0:01:42]} 23. Bd2 {[%clk 0:00:48]}  Rdf8 {[%clk 0:00:57]} 24. Qf2 {[%clk 0:00:43]}  Bf6 {[%clk 0:00:52]} 25. Bh6 {[%clk 0:00:38]}  Re8 {[%clk 0:00:53]} 26. Be3 {[%clk 0:00:33]}  h4 {[%clk 0:00:52]} 27. Qe2 {[%clk 0:00:32]}  Kd8 {[%clk 0:00:49]} 28. a4 {[%clk 0:00:32]}  Bg5 {[%clk 0:00:44]} 29. Bxg5+ {[%clk 0:00:30]}  Rxg5 {[%clk 0:00:45]} 30. a5 {[%clk 0:00:30]}  exf5 {[%clk 0:00:44]} 31. exf5 {[%clk 0:00:24]}  Nf6 {[%clk 0:00:44]} 32. axb6 {[%clk 0:00:24]}  axb6 {[%clk 0:00:45]} 33. Ne3 {[%clk 0:00:21]}  Qd4 {[%clk 0:00:43]} 34. Ra1 {[%clk 0:00:20]}  Ke7 {[%clk 0:00:43]} 35. Ra7+ {[%clk 0:00:20]}  Kf8 {[%clk 0:00:44]} 36. Kh1 {[%clk 0:00:20]}  e4 {[%clk 0:00:42]} 37. Rd1 {[%clk 0:00:16]}  h3 {[%clk 0:00:36]} 38. g3 {[%clk 0:00:14]}  exd3 {[%clk 0:00:35]} 39. Rxd3 {[%clk 0:00:14]}  Qe4+ {[%clk 0:00:36]} 40. Kg1 {[%clk 0:00:14]}  Rxf5 {[%clk 0:00:36]} 41. Qd2 {[%clk 0:00:10]}  Rf3 {[%clk 0:00:28]} 42. Raa3 {[%clk 0:00:03]}  Re5 {[%clk 0:00:25]} 43. Nd5 {[%clk 0:00:03]}  Qe1+ {[%clk 0:00:25]} 44. Qxe1 {[%clk 0:00:03]}  Rxe1# {[%clk 0:00:25]} 0-1


[Site "https://www.chess.com"]

[Event "Titled Tuesday Blitz April 18 Early 2023"]
[White "Perez Gormaz, Matias"]
[Black "Svane, Rasmus"]
[WhiteFideId "3406342"]
[BlackFideId "4657101"]
[WhiteElo "2362"]
[BlackElo "2597"]
[Result "0-1"]
[Round "07"]
[TimeControl "180+2"]
[Date "2023.04.18"]
[WhiteClock "0:00:45"]
[BlackClock "0:00:55"]

1. e4 {[%clk 0:03:00]}  c6 {[%clk 0:02:59]} 2. d4 {[%clk 0:03:00]}  d5 {[%clk 0:03:00]} 3. exd5 {[%clk 0:03:01]}  cxd5 {[%clk 0:03:01]} 4. Nf3 {[%clk 0:03:01]}  Nc6 {[%clk 0:03:01]} 5. Ne5 {[%clk 0:03:02]}  a6 {[%clk 0:03:01]} 6. c3 {[%clk 0:03:00]}  Bf5 {[%clk 0:03:02]} 7. Qb3 {[%clk 0:02:46]}  Nxe5 {[%clk 0:02:59]} 8. dxe5 {[%clk 0:02:45]}  Qc7 {[%clk 0:02:39]} 9. Bf4 {[%clk 0:02:43]}  e6 {[%clk 0:02:39]} 10. Nd2 {[%clk 0:02:43]}  Ne7 {[%clk 0:02:39]} 11. Bg3 {[%clk 0:02:37]}  Nc6 {[%clk 0:02:38]} 12. Qa4 {[%clk 0:02:22]}  Be7 {[%clk 0:02:17]} 13. Be2 {[%clk 0:02:11]}  O-O {[%clk 0:02:17]} 14. Qf4 {[%clk 0:02:07]}  h6 {[%clk 0:02:10]} 15. h4 {[%clk 0:02:05]}  Rad8 {[%clk 0:02:09]} 16. Nf3 {[%clk 0:01:25]}  d4 {[%clk 0:02:03]} 17. cxd4 {[%clk 0:01:19]}  Qa5+ {[%clk 0:01:53]} 18. Kf1 {[%clk 0:01:18]}  Qb6 {[%clk 0:01:53]} 19. Rd1 {[%clk 0:01:13]}  Bc2 {[%clk 0:01:41]} 20. Rd2 {[%clk 0:01:09]}  Qxb2 {[%clk 0:01:41]} 21. Kg1 {[%clk 0:01:08]}  Bb4 {[%clk 0:01:35]} 22. Kh2 {[%clk 0:00:57]}  Bxd2 {[%clk 0:01:29]} 23. Qxd2 {[%clk 0:00:58]}  Nxd4 {[%clk 0:01:23]} 24. Nxd4 {[%clk 0:00:58]}  Rxd4 {[%clk 0:01:24]} 25. Qe3 {[%clk 0:00:58]}  Bf5 {[%clk 0:01:17]} 26. Bf3 {[%clk 0:00:56]}  b5 {[%clk 0:01:08]} 27. Bf4 {[%clk 0:00:50]}  Rd3 {[%clk 0:00:55]} 28. Qc5 {[%clk 0:00:45]}  Qd4 {[%clk 0:00:55]} 0-1


[Site "https://www.chess.com"]

[Event "Titled Tuesday Blitz April 18 Early 2023"]
[White "Karthik Rajaa"]
[Black "Sargsyan, Shant"]
[WhiteFideId "25035215"]
[BlackFideId "13306766"]
[WhiteElo "2215"]
[BlackElo "2628"]
[Result "1-0"]
[Round "07"]
[TimeControl "180+2"]
[Date "2023.04.18"]
[WhiteClock "0:00:45"]
[BlackClock "0:00:33"]

1. Nf3 {[%clk 0:03:00]}  g6 {[%clk 0:03:00]} 2. d4 {[%clk 0:02:59]}  Bg7 {[%clk 0:03:00]} 3. Nc3 {[%clk 0:02:59]}  c6 {[%clk 0:03:00]} 4. e4 {[%clk 0:02:58]}  b5 {[%clk 0:03:01]} 5. a3 {[%clk 0:02:56]}  d6 {[%clk 0:03:01]} 6. h3 {[%clk 0:02:56]}  Nf6 {[%clk 0:03:02]} 7. Be3 {[%clk 0:02:52]}  a6 {[%clk 0:03:01]} 8. g4 {[%clk 0:02:52]}  Bb7 {[%clk 0:03:01]} 9. Bg2 {[%clk 0:02:52]}  Nbd7 {[%clk 0:03:01]} 10. g5 {[%clk 0:02:50]}  Nh5 {[%clk 0:03:01]} 11. Nd2 {[%clk 0:02:45]}  O-O {[%clk 0:03:01]} 12. Bf3 {[%clk 0:02:43]}  e5 {[%clk 0:03:01]} 13. dxe5 {[%clk 0:02:41]}  Nxe5 {[%clk 0:03:02]} 14. Bxh5 {[%clk 0:02:41]}  gxh5 {[%clk 0:03:03]} 15. f4 {[%clk 0:02:36]}  Nd7 {[%clk 0:02:57]} 16. Qxh5 {[%clk 0:02:34]}  f5 {[%clk 0:02:57]} 17. gxf6 {[%clk 0:02:24]}  Nxf6 {[%clk 0:02:57]} 18. Qe2 {[%clk 0:02:24]}  c5 {[%clk 0:02:57]} 19. O-O-O {[%clk 0:02:18]}  Kh8 {[%clk 0:02:57]} 20. e5 {[%clk 0:02:12]}  Nd7 {[%clk 0:02:37]} 21. Nde4 {[%clk 0:02:06]}  b4 {[%clk 0:02:38]} 22. Nd5 {[%clk 0:01:43]}  dxe5 {[%clk 0:02:37]} 23. Nxc5 {[%clk 0:01:32]}  Nxc5 {[%clk 0:02:20]} 24. Bxc5 {[%clk 0:01:33]}  bxa3 {[%clk 0:02:19]} 25. Bxa3 {[%clk 0:01:29]}  Qa5 {[%clk 0:01:55]} 26. Qd2 {[%clk 0:01:24]}  Qa4 {[%clk 0:01:50]} 27. Nb6 {[%clk 0:01:19]}  Qxf4 {[%clk 0:01:05]} 28. Nxa8 {[%clk 0:01:19]}  Rxa8 {[%clk 0:01:06]} 29. Rhg1 {[%clk 0:01:06]}  Qxd2+ {[%clk 0:01:06]} 30. Rxd2 {[%clk 0:01:06]}  Bh6 {[%clk 0:01:06]} 31. Be7 {[%clk 0:01:00]}  Bg7 {[%clk 0:00:43]} 32. Rdg2 {[%clk 0:00:55]}  Bxg2 {[%clk 0:00:43]} 33. Rxg2 {[%clk 0:00:56]}  Re8 {[%clk 0:00:41]} 34. Bc5 {[%clk 0:00:52]}  Bh6+ {[%clk 0:00:41]} 35. Kd1 {[%clk 0:00:48]}  Rd8+ {[%clk 0:00:40]} 36. Ke1 {[%clk 0:00:48]}  Bf4 {[%clk 0:00:33]} 37. Be7 {[%clk 0:00:45]} 1-0


[Site "https://www.chess.com"]

[Event "Titled Tuesday Blitz April 18 Early 2023"]
[White "Kucuksari, Kaan"]
[Black "Ivanchuk, Vasyl"]
[WhiteFideId "6380166"]
[BlackFideId "14100010"]
[WhiteElo "2364"]
[BlackElo "2710"]
[Result "0-1"]
[Round "07"]
[TimeControl "180+2"]
[Date "2023.04.18"]
[WhiteClock "0:00:02"]
[BlackClock "0:00:08"]

1. d4 {[%clk 0:03:00]}  Nf6 {[%clk 0:02:59]} 2. c4 {[%clk 0:03:00]}  e6 {[%clk 0:02:59]} 3. g3 {[%clk 0:03:00]}  Bb4+ {[%clk 0:02:57]} 4. Bd2 {[%clk 0:02:59]}  Qe7 {[%clk 0:02:57]} 5. Bg2 {[%clk 0:02:58]}  Nc6 {[%clk 0:02:57]} 6. e3 {[%clk 0:02:57]}  Bxd2+ {[%clk 0:02:51]} 7. Qxd2 {[%clk 0:02:54]}  d5 {[%clk 0:02:51]} 8. b3 {[%clk 0:02:45]}  Ne4 {[%clk 0:02:32]} 9. Qc2 {[%clk 0:02:25]}  Nb4 {[%clk 0:02:24]} 10. Qd1 {[%clk 0:02:21]}  c5 {[%clk 0:02:24]} 11. Ne2 {[%clk 0:02:12]}  cxd4 {[%clk 0:02:23]} 12. Nxd4 {[%clk 0:01:47]}  Nf6 {[%clk 0:02:02]} 13. a3 {[%clk 0:01:33]}  Nc6 {[%clk 0:02:02]} 14. Nc3 {[%clk 0:01:27]}  Nxd4 {[%clk 0:01:58]} 15. Qxd4 {[%clk 0:01:11]}  dxc4 {[%clk 0:01:57]} 16. Qxc4 {[%clk 0:01:08]}  O-O {[%clk 0:01:57]} 17. O-O {[%clk 0:01:08]}  Rb8 {[%clk 0:01:57]} 18. Qb4 {[%clk 0:01:02]}  Re8 {[%clk 0:01:35]} 19. Rfd1 {[%clk 0:00:36]}  b6 {[%clk 0:01:31]} 20. Nb5 {[%clk 0:00:33]}  a5 {[%clk 0:01:20]} 21. Qxe7 {[%clk 0:00:30]}  Rxe7 {[%clk 0:01:20]} 22. Rd8+ {[%clk 0:00:26]}  Re8 {[%clk 0:01:19]} 23. Rxe8+ {[%clk 0:00:21]}  Nxe8 {[%clk 0:01:19]} 24. Rd1 {[%clk 0:00:15]}  Kf8 {[%clk 0:01:11]} 25. Na7 {[%clk 0:00:13]}  Ba6 {[%clk 0:01:11]} 26. Nc6 {[%clk 0:00:13]}  Rc8 {[%clk 0:01:09]} 27. a4 {[%clk 0:00:11]}  Nf6 {[%clk 0:01:01]} 28. Nd4 {[%clk 0:00:10]}  Rc3 {[%clk 0:00:57]} 29. Nc6 {[%clk 0:00:09]}  Rxb3 {[%clk 0:00:49]} 30. Rd8+ {[%clk 0:00:08]}  Ne8 {[%clk 0:00:49]} 31. h4 {[%clk 0:00:08]}  Rc3 {[%clk 0:00:36]} 32. Nb8 {[%clk 0:00:04]}  Rc8 {[%clk 0:00:33]} 33. Nd7+ {[%clk 0:00:02]}  Ke7 {[%clk 0:00:32]} 34. Rxc8 {[%clk 0:00:03]}  Bxc8 {[%clk 0:00:31]} 35. Nxb6 {[%clk 0:00:04]}  Ba6 {[%clk 0:00:24]} 36. e4 {[%clk 0:00:04]}  Kd6 {[%clk 0:00:21]} 37. f4 {[%clk 0:00:03]}  Kc5 {[%clk 0:00:18]} 38. Nd7+ {[%clk 0:00:03]}  Kb4 {[%clk 0:00:18]} 39. Ne5 {[%clk 0:00:03]}  Nd6 {[%clk 0:00:15]} 40. Nc6+ {[%clk 0:00:02]}  Kxa4 {[%clk 0:00:15]} 41. e5 {[%clk 0:00:03]}  Nf5 {[%clk 0:00:15]} 42. Nd8 {[%clk 0:00:04]}  Nxg3 {[%clk 0:00:14]} 43. Nxf7 {[%clk 0:00:04]}  Ne2+ {[%clk 0:00:14]} 44. Kf2 {[%clk 0:00:04]}  Nxf4 {[%clk 0:00:14]} 45. Be4 {[%clk 0:00:04]}  Bc4 {[%clk 0:00:12]} 46. Ke3 {[%clk 0:00:04]}  Nd5+ {[%clk 0:00:12]} 47. Kd4 {[%clk 0:00:04]}  Kb4 {[%clk 0:00:12]} 48. Nd8 {[%clk 0:00:04]}  Ne7 {[%clk 0:00:10]} 49. Nb7 {[%clk 0:00:03]}  a4 {[%clk 0:00:09]} 50. Nd6 {[%clk 0:00:03]}  Bb3 {[%clk 0:00:09]} 51. Bb1 {[%clk 0:00:01]}  a3 {[%clk 0:00:09]} 52. Nf7 {[%clk 0:00:01]}  Nc6+ {[%clk 0:00:09]} 53. Ke4 {[%clk 0:00:01]}  Bc2+ {[%clk 0:00:07]} 54. Bxc2 {[%clk 0:00:02]}  a2 {[%clk 0:00:08]} 0-1


[Site "https://www.chess.com"]